[Event "BAN-chT SAIF POWERTEC 2020"]
[Site "Dhaka"]
[Date "2021.03.19"]
[Round "1.3"]
[White "Reefat, Bin-Sattar"]
[Black "Sahu, Sekhar Chandra"]
[Result "1/2-1/2"]
[ECO "B20"]
[WhiteElo "2409"]
[BlackElo "2049"]
[Annotator "NA"]
[PlyCount "78"]
[EventDate "2021.03.19"]
[EventType "team-tourn"]
[EventCountry "BAN"]
[SourceTitle "playchess.com"]
[Source "ChessBase"]
[SourceQuality "1"]
[TimeControl "5400+30"]

1. e4 {[%emt 0:00:00]} c5 {[%emt 0:00:00]} 2. b3 {[%emt 0:00:07]} Nc6 {[%emt 0:00:08]} 3. Bb2 {[%emt 0:00:04]} a6 {[%emt 0:00:10]} 4. Nf3 {[%emt 0:01:31]} d6 {[%emt 0:00:32]} 5. d4 {[%emt 0:00:05]} cxd4 {[%emt 0:00:05]} 6. Nxd4 {[%emt 0:00:03]} Nf6 {[%emt 0:00:16]} 7. Nd2 {[%emt 0:03:50]} d5 {[%emt 0:03:43]} 8. Nxc6 {[%emt 0:05:11]} bxc6 {[%emt 0:00:03]} 9. e5 {[%emt 0:06:59]} Nd7 {[%emt 0:00:10]} 10. e6 {[%emt 0:00:18]} fxe6 {[%emt 0:03:11]} 11. Bd3 {[%emt 0:00:23]} Qc7 {[%emt 0:08:30]} 12. Qh5+ {[%emt 0:05:15]} Kd8 {[%emt 0:00:02]} 13. O-O-O {[%emt 0:11:29]} a5 {[%emt 0:14:18]} 14. a4 {[%emt 0:04:38]} Qf4 {[%emt 0:01:24]} 15. Kb1 {[%emt 0:19:02]} g6 {[%emt 0:11:35]} 16. Qe2 {[%emt 0:02:22]} e5 {[%emt 0:00:26]} 17. g3 {[%emt 0:08:45]} Qf7 {[%emt 0:05:25]} 18. f4 {[%emt 0:06:11]} Nc5 {[%emt 0:07:46]} 19. Qe3 {[%emt 0:06:32]} e6 {[%emt 0:04:24]} 20. Bxe5 {[%emt 0:01:49]} Rg8 {[%emt 0:00:13]} 21. Bd4 {[%emt 0:05:49]} Nxd3 {[%emt 0:03:36]} 22. cxd3 {[%emt 0:02:56]} Qb7 {[%emt 0:01:22]} 23. Rc1 {[%emt 0:01:03]} Bb4 {[%emt 0:03:13]} 24. Bc3 {[%emt 0:02:20]} Bd6 {[%emt 0:04:53]} 25. Ka2 {[%emt 0:00:14]} Bd7 {[%emt 0:06:12]} 26. Rc2 {[%emt 0:02:52]} Ke7 {[%emt 0:00:38]} 27. Rhc1 {[%emt 0:00:51]} Kf7 {[%emt 0:02:35]} 28. Be5 {[%emt 0:01:57]} Be7 {[%emt 0:00:30]} 29. g4 {[%emt 0:00:33]} c5 {[%emt 0:01:50]} 30. Qh3 {[%emt 0:00:35]} Rh8 {[%emt 0:08:32]} 31. Rxc5 {[%emt 0:01:04]} Qb4 {[%emt 0:00:52]} 32. R5c2 {[%emt 0:00:23]} h5 {[%emt 0:05:29]} 33. gxh5 {[%emt 0:00:43]} Rxh5 {[%emt 0:00:03]} 34. Qg3 {[%emt 0:00:21]} Ra7 {[%emt 0:00:49]} 35. d4 {[%emt 0:00:39]} Rb7 {[%emt 0:00:15]} 36. Qd3 {[%emt 0:00:29]} Rxh2 {[%emt 0:00:43]} 37. Rg1 {[%emt 0:00:22]} Rh6 {[%emt 0:01:04]} 38. Nb1 {[%emt 0:00:38]} Bxa4 {[%emt 0:00:21]} 39. Rb2 {[%emt 0:00:19]} Bb5 {[%emt 0:02:55]} 1/2-1/2

[Event "BAN-chT SAIF POWERTEC 2020"]
[Site "Dhaka"]
[Date "2021.03.19"]
[Round "1.4"]
[White "Deshmukh, Anup"]
[Black "Mehdi Hasan Parag"]
[Result "1-0"]
[ECO "A22"]
[WhiteElo "2190"]
[BlackElo "2204"]
[Annotator "NA"]
[PlyCount "51"]
[EventDate "2021.03.19"]
[EventType "team-tourn"]
[EventCountry "BAN"]
[SourceTitle "playchess.com"]
[Source "ChessBase"]
[SourceQuality "1"]
[TimeControl "5400+30"]

1. c4 {[%emt 0:00:00]} e5 {[%emt 0:00:00]} 2. Nc3 {[%emt 0:00:00]} Nf6 {[%emt 0:00:00]} 3. g3 {[%emt 0:00:07]} d5 {[%emt 0:00:01]} 4. cxd5 {[%emt 0:00:09]} Nxd5 {[%emt 0:00:03]} 5. Bg2 {[%emt 0:00:11]} Nxc3 {[%emt 0:00:13]} 6. bxc3 {[%emt 0:00:09]} Nc6 {[%emt 0:00:09]} 7. Rb1 {[%emt 0:01:20]} Bc5 {[%emt 0:01:39]} 8. Qa4 {[%emt 0:04:41]} Qf6 {[%emt 0:01:16]} 9. Nf3 {[%emt 0:02:43]} O-O {[%emt 0:00:42]} 10. O-O {[%emt 0:02:02]} Rb8 {[%emt 0:07:50]} 11. d3 {[%emt 0:04:23]} Bd7 {[%emt 0:05:53]} 12. Ng5 {[%emt 0:03:25]} Be7 {[%emt 0:13:57]} 13. Be4 {[%emt 0:14:12]} g6 {[%emt 0:02:19]} 14. Bd5 {[%emt 0:03:54]} Qd6 {[%emt 0:05:38]} 15. Bg2 {[%emt 0:05:35]} Kg7 {[%emt 0:07:32]} 16. f4 {[%emt 0:03:52]} f5 {[%emt 0:10:11]} 17. fxe5 {[%emt 0:02:59]} Nxe5 {[%emt 0:01:03]} 18. Qxa7 {[%emt 0:14:18]} b6 {[%emt 0:05:13]} 19. d4 {[%emt 0:00:24]} Nc6 {[%emt 0:23:58]} 20. Qa4 {[%emt 0:01:47]} Ra8 {[%emt 0:03:02]} 21. Qc2 {[%emt 0:03:29]} Bxg5 {[%emt 0:00:39]} 22. Bxg5 {[%emt 0:00:16]} Be6 {[%emt 0:00:28]} 23. Bf4 {[%emt 0:01:16]} Qd7 {[%emt 0:00:27]} 24. d5 {[%emt 0:01:38]} Bxd5 {[%emt 0:01:07]} 25. Rfd1 {[%emt 0:00:58]} Ra5 {[%emt 0:00:25]} 26. c4 {[%emt 0:00:25]} 1-0

[Event "BAN-chT SAIF POWERTEC 2020"]
[Site "Dhaka"]
[Date "2021.03.19"]
[Round "1.5"]
[White "Hamid, Rani"]
[Black "Mohammad Fahad, Rahman"]
[Result "0-1"]
[ECO "B59"]
[WhiteElo "1923"]
[BlackElo "2307"]
[Annotator "NA"]
[PlyCount "102"]
[EventDate "2021.03.19"]
[EventType "team-tourn"]
[EventCountry "BAN"]
[SourceTitle "playchess.com"]
[Source "ChessBase"]
[SourceQuality "1"]
[TimeControl "5400+30"]

1. e4 {[%emt 0:00:00]} c5 {[%emt 0:00:00]} 2. Nf3 {[%emt 0:00:00]} d6 {[%emt 0:00:00]} 3. d4 {[%emt 0:00:00]} cxd4 {[%emt 0:00:17]} 4. Nxd4 {[%emt 0:00:00]} Nf6 {[%emt 0:00:10]} 5. Nc3 {[%emt 0:00:00]} Nc6 {[%emt 0:00:11]} 6. Be2 {[%emt 0:00:14]} e5 {[%emt 0:00:12]} 7. Nb3 {[%emt 0:00:06]} Be7 {[%emt 0:00:32]} 8. O-O {[%emt 0:00:35]} O-O {[%emt 0:00:07]} 9. Be3 {[%emt 0:01:00]} a5 {[%emt 0:00:32]} 10. a4 {[%emt 0:00:15]} Nb4 {[%emt 0:00:15]} 11. f4 {[%emt 0:01:09]} Be6 {[%emt 0:00:16]} 12. Kh1 {[%emt 0:01:18]} Rc8 {[%emt 0:06:15]} 13. Bf3 {[%emt 0:04:58]} Qc7 {[%emt 0:04:03]} 14. Rf2 {[%emt 0:01:35]} b6 {[%emt 0:03:25]} 15. Nb5 {[%emt 0:02:39]} Qb8 {[%emt 0:01:08]} 16. c3 {[%emt 0:00:11]} exf4 {[%emt 0:03:38]} 17. Bd4 {[%emt 0:02:30]} Nc6 {[%emt 0:06:08]} 18. Bxf6 {[%emt 0:03:49]} Bxf6 {[%emt 0:00:31]} 19. N3d4 {[%emt 0:00:14]} Nxd4 {[%emt 0:04:17]} 20. Nxd4 {[%emt 0:00:04]} Rce8 {[%emt 0:07:41]} 21. Rd2 {[%emt 0:02:20]} Be5 {[%emt 0:01:13]} 22. Bg4 {[%emt 0:02:46]} Qb7 {[%emt 0:07:33]} 23. Qf3 {[%emt 0:01:15]} Bxg4 {[%emt 0:01:14]} 24. Qxg4 {[%emt 0:00:02]} Qxe4 {[%emt 0:00:23]} 25. Nf5 {[%emt 0:00:20]} h5 {[%emt 0:08:41]} 26. Qh3 {[%emt 0:03:58]} g6 {[%emt 0:00:59]} 27. Nh4 {[%emt 0:02:44]} Bxc3 {[%emt 0:00:21]} 28. Rf2 {[%emt 0:00:06]} Bxb2 {[%emt 0:02:18]} 29. Raf1 {[%emt 0:00:03]} Bd4 {[%emt 0:00:21]} 30. Rf3 {[%emt 0:00:53]} d5 {[%emt 0:00:58]} 31. g4 {[%emt 0:01:56]} fxg3 {[%emt 0:00:49]} 32. hxg3 {[%emt 0:00:10]} Be5 {[%emt 0:02:02]} 33. Qg2 {[%emt 0:01:34]} d4 {[%emt 0:00:52]} 34. Qf2 {[%emt 0:02:07]} Rc8 {[%emt 0:02:33]} 35. Re1 {[%emt 0:00:40]} Qd5 {[%emt 0:00:17]} 36. Qg2 {[%emt 0:01:42]} Bg7 {[%emt 0:02:03]} 37. Nxg6 {[%emt 0:00:43]} Rfe8 {[%emt 0:03:03]} 38. Ne7+ {[%emt 0:04:29]} Rxe7 {[%emt 0:00:07]} 39. Rxe7 {[%emt 0:00:05]} Rc1+ {[%emt 0:06:42]} 40. Kh2 {[%emt 0:00:20]} d3 {[%emt 0:00:15]} 41. Rfxf7 {[%emt 0:07:06]} Rc2 {[%emt 0:03:44]} 42. Rf2 {[%emt 0:01:48]} Rxf2 {[%emt 0:00:26]} 43. Qxf2 {[%emt 0:00:20]} d2 {[%emt 0:00:16]} 44. Re1 {[%emt 0:03:43]} dxe1=Q {[%emt 0:00:52]} 45. Qxe1 {[%emt 0:00:01]} Qe5 {[%emt 0:00:42]} 46. Qd1 {[%emt 0:00:24]} Bf6 {[%emt 0:03:12]} 47. Qb3+ {[%emt 0:00:21]} Kg7 {[%emt 0:00:21]} 48. Qf3 {[%emt 0:02:15]} h4 {[%emt 0:00:37]} 49. Qg4+ {[%emt 0:00:24]} Kh6 {[%emt 0:00:25]} 50. Qf4+ {[%emt 0:01:13]} Qxf4 {[%emt 0:00:07]} 51. gxf4 {[%emt 0:49:05]} Kg6 {[%emt 0:22:26]} 0-1

[Event "BAN-chT SAIF POWERTEC 2020"]
[Site "Dhaka"]
[Date "2021.03.19"]
[Round "1.8"]
[White "Mollah Abdullah, Al Rakib"]
[Black "Sultana, Sharmin Shirin"]
[Result "1-0"]
[ECO "D10"]
[WhiteElo "2463"]
[BlackElo "2002"]
[Annotator "ChessBase"]
[PlyCount "67"]
[EventDate "2021.03.19"]
[EventType "team-tourn"]
[EventCountry "BAN"]
[SourceTitle "playchess.com"]
[Source "ChessBase"]
[SourceQuality "1"]
[TimeControl "5400+30"]

1. d4 {[%emt 0:00:11]} d5 {[%emt 0:00:00]} 2. c4 {[%emt 0:00:08]} c6 {[%emt 0:01:18]} 3. Bf4 {[%emt 0:00:33]} Nf6 {[%emt 0:00:51]} 4. e3 {[%emt 0:00:30]} Bf5 {[%emt 0:07:39]} 5. Nc3 {[%emt 0:01:59]} e6 {[%emt 0:00:30]} 6. Qb3 {[%emt 0:01:21]} Qb6 {[%emt 0:06:08]} 7. c5 {[%emt 0:01:00]} Qxb3 {[%emt 0:01:18]} 8. axb3 {[%emt 0:00:02]} Nbd7 {[%emt 0:01:05]} 9. h3 {[%emt 0:01:24]} Be7 {[%emt 0:06:50]} 10. b4 {[%emt 0:01:09]} a6 {[%emt 0:02:12]} 11. b5 {[%emt 0:07:28]} cxb5 {[%emt 0:00:47]} 12. Bxb5 {[%emt 0:00:10]} O-O {[%emt 0:01:20]} 13. Ba4 {[%emt 0:05:58]} b5 {[%emt 0:15:16]} 14. Bd1 {[%emt 0:17:51]} Rfc8 {[%emt 0:16:11]} 15. Nf3 {[%emt 0:03:38]} Ne8 {[%emt 0:06:58]} 16. Be2 {[%emt 0:08:30]} Bd8 {[%emt 0:03:12]} 17. O-O {[%emt 0:06:58]} h6 {[%emt 0:03:21]} 18. b4 {[%emt 0:05:12]} Bc7 {[%emt 0:02:04]} 19. Ne5 {[%emt 0:07:02]} Nxe5 {[%emt 0:10:11]} 20. Bxe5 {[%emt 0:06:33]} f6 {[%emt 0:00:39]} 21. Bh2 {[%emt 0:05:15]} Bxh2+ {[%emt 0:00:18]} 22. Kxh2 {[%emt 0:00:02]} Nc7 {[%emt 0:00:14]} 23. Ra5 {[%emt 0:00:54]} Rd8 {[%emt 0:03:35]} 24. Rfa1 {[%emt 0:02:03]} e5 {[%emt 0:00:46]} 25. Rd1 {[%emt 0:05:56]} Rab8 {[%emt 0:04:28]} 26. Ra2 {[%emt 0:00:42]} Be6 {[%emt 0:00:51]} 27. g4 {[%emt 0:00:39]} Re8 {[%emt 0:00:46]} 28. Rad2 {[%emt 0:04:21]} Rbd8 {[%emt 0:00:29]} 29. e4 {[%emt 0:00:39]} dxe4 {[%emt 0:03:03]} 30. d5 {[%emt 0:00:34]} Bf7 {[%emt 0:01:29]} 31. d6 {[%emt 0:02:23]} Ne6 {[%emt 0:00:03]} 32. d7 {[%emt 0:00:46]} Rf8 {[%emt 0:00:46]} 33. c6 {[%emt 0:00:40]} Ra8 {[%emt 0:01:17]} 34. c7 {[%emt 0:00:23]} 1-0

[Event "BAN-chT SAIF POWERTEC 2020"]
[Site "Dhaka"]
[Date "2021.03.19"]
[Round "1.9"]
[White "Zia, Tahsin Tajwar"]
[Black "Chowdhury, Sohel"]
[Result "1-0"]
[ECO "D02"]
[WhiteElo "2092"]
[BlackElo "2149"]
[Annotator "NA"]
[PlyCount "77"]
[EventDate "2021.03.19"]
[EventType "team-tourn"]
[EventCountry "BAN"]
[SourceTitle "playchess.com"]
[Source "ChessBase"]
[SourceQuality "1"]
[TimeControl "5400+30"]

1. Nf3 {[%emt 0:00:00]} d5 {[%emt 0:00:00]} 2. d4 {[%emt 0:00:07]} Nf6 {[%emt 0:00:08]} 3. Bf4 {[%emt 0:00:48]} e6 {[%emt 0:00:11]} 4. e3 {[%emt 0:00:03]} c5 {[%emt 0:01:44]} 5. Nbd2 {[%emt 0:01:30]} Nc6 {[%emt 0:00:42]} 6. c3 {[%emt 0:00:13]} Bd6 {[%emt 0:00:33]} 7. Bg3 {[%emt 0:00:07]} O-O {[%emt 0:04:18]} 8. Bd3 {[%emt 0:00:11]} b6 {[%emt 0:07:09]} 9. Qe2 {[%emt 0:00:24]} Bb7 {[%emt 0:08:03]} 10. Rd1 {[%emt 0:00:13]} cxd4 {[%emt 0:14:18]} 11. exd4 {[%emt 0:00:30]} Re8 {[%emt 0:07:43]} 12. Bxd6 {[%emt 0:04:15]} Qxd6 {[%emt 0:00:04]} 13. Ne5 {[%emt 0:00:19]} Rac8 {[%emt 0:05:05]} 14. O-O {[%emt 0:00:40]} Ne7 {[%emt 0:05:02]} 15. f4 {[%emt 0:04:16]} Qc7 {[%emt 0:08:45]} 16. g4 {[%emt 0:06:58]} Nd7 {[%emt 0:14:37]} 17. Rde1 {[%emt 0:06:28]} Nf8 {[%emt 0:00:35]} 18. g5 {[%emt 0:12:18]} Nf5 {[%emt 0:05:29]} 19. Qg4 {[%emt 0:03:46]} Nd6 {[%emt 0:06:17]} 20. Rf3 {[%emt 0:09:17]} Qe7 {[%emt 0:05:03]} 21. Qh5 {[%emt 0:19:55]} f5 {[%emt 0:01:36]} 22. gxf6 {[%emt 0:00:58]} Qxf6 {[%emt 0:00:06]} 23. Ng4 {[%emt 0:01:46]} Qf7 {[%emt 0:01:55]} 24. Nh6+ {[%emt 0:02:04]} gxh6 {[%emt 0:00:27]} 25. Rg3+ {[%emt 0:00:07]} Ng6 {[%emt 0:01:23]} 26. Bxg6 {[%emt 0:00:13]} hxg6 {[%emt 0:00:14]} 27. Rxg6+ {[%emt 0:00:26]} Kf8 {[%emt 0:00:55]} 28. Qxh6+ {[%emt 0:00:16]} Ke7 {[%emt 0:00:46]} 29. Rexe6+ {[%emt 0:04:38]} Kd7 {[%emt 0:00:07]} 30. Rxd6+ {[%emt 0:00:16]} Kc7 {[%emt 0:00:20]} 31. Rg7 {[%emt 0:01:29]} Rg8 {[%emt 0:01:06]} 32. Rdg6 {[%emt 0:00:27]} Rxg7 {[%emt 0:00:25]} 33. Qxg7 {[%emt 0:00:53]} Rf8 {[%emt 0:00:21]} 34. f5 {[%emt 0:00:07]} Qxg7 {[%emt 0:00:51]} 35. Rxg7+ {[%emt 0:00:02]} Kb8 {[%emt 0:00:21]} 36. Nf3 {[%emt 0:02:08]} Rxf5 {[%emt 0:00:02]} 37. Ne5 {[%emt 0:00:06]} a5 {[%emt 0:00:57]} 38. Kg2 {[%emt 0:01:00]} Ba6 {[%emt 0:00:20]} 39. Nd7+ {[%emt 0:00:25]} 1-0

[Event "BAN-chT SAIF POWERTEC 2020"]
[Site "Dhaka"]
[Date "2021.03.19"]
[Round "1.11"]
[White "Jabed Al Azad"]
[Black "Gukesh D"]
[Result "0-1"]
[ECO "B06"]
[WhiteElo "2002"]
[BlackElo "2563"]
[Annotator "RC"]
[PlyCount "62"]
[EventDate "2021.03.19"]
[EventType "team-tourn"]
[EventCountry "BAN"]
[SourceTitle "playchess.com"]
[Source "ChessBase"]
[SourceQuality "1"]
[TimeControl "5400+30"]

1. e4 {[%emt 1:30:30]} g6 {[%emt 1:30:30]} 2. d4 {[%emt 0:00:30]} Bg7 {[%emt 0:00:30]} 3. Nf3 {[%emt 0:00:30]} d6 {[%emt 0:00:30]} 4. h3 {[%emt 0:00:30]} Nd7 {[%emt 0:00:30]} 5. Bd3 {[%emt 0:00:30]} e5 {[%emt 0:00:30]} 6. d5 {[%emt 0:00:30]} Ne7 {[%emt 0:00:30]} 7. O-O {[%emt 0:00:30]} O-O {[%emt 0:00:30]} 8. c4 {[%emt 0:00:30]} f5 {[%emt 0:00:30]} 9. Nc3 {[%emt 0:00:30]} f4 {[%emt 0:00:30]} 10. Ng5 {[%emt 0:00:30]} Nc5 {[%emt 0:00:30]} 11. b4 {[%emt 0:00:30]} Nxd3 {[%emt 0:00:30]} 12. Qxd3 {[%emt 0:00:30]} Nf5 13. exf5 Qxg5 {[%emt 0:01:00]} 14. fxg6 {[%emt 0:01:00]} e4 {[%emt 0:00:30]} 15. gxh7+ {[%emt 0:00:30]} Kh8 {[%emt 0:00:30]} 16. Nxe4 {[%emt 0:00:30]} Qg6 {[%emt 0:00:30]} 17. Rb1 {[%emt 0:00:30]} f3 {[%emt 0:00:30]} 18. g3 {[%emt 0:00:30]} Bxh3 {[%emt 0:00:30]} 19. Re1 {[%emt 0:00:30]} Bg2 {[%emt 0:00:30]} 20. g4 {[%emt 0:00:30]} Qxh7 {[%emt 0:00:30]} 21. Ng3 {[%emt 0:00:30]} Qxd3 {[%emt 0:00:30]} 22. Be3 {[%emt 0:00:30]} Be5 {[%emt 0:00:30]} 23. Rbd1 {[%emt 0:00:30]} Qh7 {[%emt 0:00:30]} 24. Bd4 {[%emt 0:00:30]} Bxd4 {[%emt 0:00:30]} 25. Rxd4 {[%emt 0:00:30]} Qh3 {[%emt 0:00:30]} 26. g5 {[%emt 0:00:30]} Bh1 {[%emt 0:00:30]} 27. Rh4+ {[%emt 0:00:30]} Qxh4 {[%emt 0:00:30]} 28. Re4 {[%emt 0:00:30]} Qh3 {[%emt 0:00:30]} 29. Rh4+ {[%emt 0:00:30]} Qxh4 {[%emt 0:00:30]} 30. Nxh1 {[%emt 0:00:30]} Qh3 {[%emt 0:00:30]} 31. Ng3 {[%emt 0:00:30]} Qg2# {[%emt 0:00:30]} 0-1

[Event "BAN-chT SAIF POWERTEC 2020"]
[Site "Dhaka"]
[Date "2021.03.19"]
[Round "1.12"]
[White "Neelotpal, Das"]
[Black "Erigaisi Arjun"]
[Result "0-1"]
[ECO "C47"]
[WhiteElo "2425"]
[BlackElo "2559"]
[Annotator "ChessBase"]
[PlyCount "92"]
[EventDate "2021.03.19"]
[EventType "team-tourn"]
[EventCountry "BAN"]
[SourceTitle "playchess.com"]
[Source "ChessBase"]
[SourceQuality "1"]
[TimeControl "5400+30"]

1. e4 {[%emt 1:30:30]} e5 {[%emt 1:30:30]} 2. Nf3 {[%emt 0:00:30]} Nc6 {[%emt 0:00:30]} 3. Nc3 {[%emt 0:00:30]} Nf6 {[%emt 0:00:30]} 4. d4 {[%emt 0:00:30]} exd4 {[%emt 0:00:30]} 5. Nxd4 {[%emt 0:00:30]} Bb4 {[%emt 0:00:30]} 6. Nxc6 {[%emt 0:00:30]} bxc6 {[%emt 0:00:30]} 7. Bd3 {[%emt 0:00:30]} O-O {[%emt 0:00:30]} 8. O-O {[%emt 0:00:30]} d5 {[%emt 0:00:30]} 9. exd5 {[%emt 0:00:30]} cxd5 {[%emt 0:00:30]} 10. Bg5 {[%emt 0:00:30]} c6 {[%emt 0:00:30]} 11. Qf3 {[%emt 0:00:30]} h6 {[%emt 0:00:30]} 12. Bxf6 {[%emt 0:00:30]} Qxf6 {[%emt 0:00:30]} 13. Qxf6 {[%emt 0:00:30]} gxf6 {[%emt 0:00:30]} 14. Ne2 {[%emt 0:00:30]} Bc5 {[%emt 0:00:30]} 15. Ng3 {[%emt 0:00:30]} Re8 {[%emt 0:00:30]} 16. Rfe1 {[%emt 0:00:30]} Re5 {[%emt 0:00:30]} 17. Kf1 {[%emt 0:00:30]} Rb8 {[%emt 0:00:30]} 18. f4 {[%emt 0:00:30]} Rxe1+ {[%emt 0:00:30]} 19. Rxe1 {[%emt 0:00:30]} Kf8 {[%emt 0:00:30]} 20. b3 {[%emt 0:00:30]} Rb4 {[%emt 0:00:30]} 21. Ne2 {[%emt 0:00:30]} Be3 {[%emt 0:00:30]} 22. Rd1 {[%emt 0:00:30]} a5 {[%emt 0:00:30]} 23. c3 {[%emt 0:00:30]} Rb8 {[%emt 0:00:30]} 24. h3 {[%emt 0:00:30]} h5 {[%emt 0:00:30]} 25. f5 {[%emt 0:00:30]} h4 {[%emt 0:00:30]} 26. Bc2 {[%emt 0:00:30]} Ba6 {[%emt 0:00:30]} 27. Bd3 {[%emt 0:00:30]} Bb7 {[%emt 0:00:30]} 28. Nd4 {[%emt 0:00:30]} Bf4 {[%emt 0:00:30]} 29. c4 {[%emt 0:00:30]} c5 {[%emt 0:00:30]} 30. Ne2 {[%emt 0:00:30]} Be5 {[%emt 0:00:30]} 31. cxd5 {[%emt 0:00:30]} Bxd5 {[%emt 0:00:30]} 32. Rc1 {[%emt 0:00:30]} Rc8 {[%emt 0:00:30]} 33. Nc3 {[%emt 0:00:30]} Bc6 {[%emt 0:00:30]} 34. Be4 {[%emt 0:00:30]} Bd7 {[%emt 0:00:30]} 35. Nd5 {[%emt 0:00:30]} Bd4 {[%emt 0:00:30]} 36. Nb6 {[%emt 0:00:30]} Bb5+ {[%emt 0:00:30]} 37. Nc4 {[%emt 0:00:30]} a4 {[%emt 0:00:30]} 38. bxa4 {[%emt 0:00:30]} Bxa4 {[%emt 0:00:30]} 39. Rb1 {[%emt 0:00:30]} Re8 {[%emt 0:00:30]} 40. Bd3 {[%emt 0:00:30]} Re7 {[%emt 0:00:30]} 41. Re1 {[%emt 0:00:30]} Ra7 {[%emt 0:00:30]} 42. Nd6 {[%emt 0:00:30]} Bc6 {[%emt 0:00:30]} 43. Bc4 {[%emt 0:00:30]} Be5 {[%emt 0:00:30]} 44. Nb5 {[%emt 0:00:30]} Ra4 {[%emt 0:00:30]} 45. Be2 {[%emt 0:00:30]} Rxa2 {[%emt 0:00:30]} 46. Rc1 {[%emt 0:00:30]} Rxe2 {[%emt 0:00:30]} 0-1

[Event "BAN-chT SAIF POWERTEC 2020"]
[Site "Dhaka"]
[Date "2021.03.20"]
[Round "2.3"]
[White "Sanket Chakravarty"]
[Black "Reefat, Bin-Sattar"]
[Result "0-1"]
[ECO "A22"]
[WhiteElo "2106"]
[BlackElo "2409"]
[Annotator "NA"]
[PlyCount "36"]
[EventDate "2021.03.19"]
[EventType "team-tourn"]
[EventCountry "BAN"]
[SourceTitle "playchess.com"]
[Source "ChessBase"]
[SourceQuality "1"]
[WhiteTeam "India"]
[BlackTeam "Bangladesh"]
[WhiteTeamCountry "IND"]
[BlackTeamCountry "BAN"]
[TimeControl "5400+30"]

1. c4 {[%emt 0:14:00]} e5 {[%emt 0:00:30]} 2. g3 {[%emt 0:00:27]} Nf6 {[%emt 0:00:05]} 3. Bg2 {[%emt 0:00:04]} d5 {[%emt 0:00:06]} 4. cxd5 {[%emt 0:00:04]} Nxd5 {[%emt 0:00:05]} 5. Nc3 {[%emt 0:00:05]} Nb6 {[%emt 0:00:05]} 6. e3 {[%emt 0:00:07]} Nc6 {[%emt 0:19:37]} 7. Nge2 {[%emt 0:00:08]} h5 {[%emt 0:04:21]} 8. h3 {[%emt 0:00:16]} h4 {[%emt 0:09:17]} 9. g4 {[%emt 0:00:45]} f5 {[%emt 0:00:31]} 10. gxf5 {[%emt 0:00:05]} Bxf5 {[%emt 0:00:05]} 11. d4 {[%emt 0:00:04]} exd4 {[%emt 0:06:05]} 12. Nxd4 {[%emt 0:00:08]} Nxd4 {[%emt 0:00:21]} 13. exd4 {[%emt 0:00:07]} Qe7+ {[%emt 0:01:32]} 14. Be3 {[%emt 0:00:05]} c6 {[%emt 0:02:39]} 15. d5 {[%emt 0:00:45]} Qe5 {[%emt 0:35:33]} 16. dxc6 {[%emt 0:16:14]} Rd8 {[%emt 0:00:07]} 17. Qf3 {[%emt 0:01:46]} Bd6 {[%emt 0:01:06]} 18. O-O-O {[%emt 0:14:07]} Qxc3+ {[%emt 0:00:07]} 0-1

[Event "BAN-chT SAIF POWERTEC 2020"]
[Site "Dhaka"]
[Date "2021.03.20"]
[Round "2.4"]
[White "Mehdi Hasan Parag"]
[Black "Mihir Lal, Das"]
[Result "1-0"]
[ECO "B45"]
[WhiteElo "2204"]
[BlackElo "1964"]
[Annotator "NA"]
[PlyCount "61"]
[EventDate "2021.03.19"]
[EventType "team-tourn"]
[EventCountry "BAN"]
[SourceTitle "playchess.com"]
[Source "ChessBase"]
[SourceQuality "1"]
[WhiteTeam "Bangladesh"]
[BlackTeam "Bangladesh"]
[WhiteTeamCountry "BAN"]
[BlackTeamCountry "BAN"]
[TimeControl "5400+30"]

1. e4 {[%emt 0:00:00]} c5 {[%emt 0:01:32]} 2. Nf3 {[%emt 0:00:00]} e6 {[%emt 0:07:30]} 3. d4 {[%emt 0:00:12]} cxd4 {[%emt 0:00:13]} 4. Nxd4 {[%emt 0:00:04]} Nf6 {[%emt 0:00:06]} 5. Nc3 {[%emt 0:01:52]} Nc6 {[%emt 0:00:05]} 6. Nxc6 {[%emt 0:00:29]} bxc6 {[%emt 0:00:03]} 7. e5 {[%emt 0:00:13]} Nd5 {[%emt 0:00:02]} 8. Ne4 {[%emt 0:00:20]} Qc7 {[%emt 0:00:04]} 9. f4 {[%emt 0:01:03]} Qb6 {[%emt 0:00:07]} 10. c4 {[%emt 0:00:19]} Bb4+ {[%emt 0:00:43]} 11. Ke2 {[%emt 0:00:14]} f5 {[%emt 0:00:50]} 12. exf6 {[%emt 0:05:37]} Nxf6 {[%emt 0:00:04]} 13. Be3 {[%emt 0:00:57]} Qc7 {[%emt 0:03:06]} 14. Nxf6+ {[%emt 0:00:52]} gxf6 {[%emt 0:01:19]} 15. c5 {[%emt 0:00:08]} d6 {[%emt 0:05:36]} 16. Qxd6 {[%emt 0:00:32]} Qxd6 {[%emt 0:00:04]} 17. cxd6 {[%emt 0:00:06]} Bxd6 {[%emt 0:00:19]} 18. Rc1 {[%emt 0:01:09]} Rb8 {[%emt 0:02:27]} 19. b3 {[%emt 0:01:00]} Kd7 {[%emt 0:20:49]} 20. Kf2 {[%emt 0:06:29]} a5 {[%emt 0:09:54]} 21. Bc4 {[%emt 0:05:10]} e5 {[%emt 0:06:00]} 22. Rhd1 {[%emt 0:01:05]} Kc7 {[%emt 0:00:02]} 23. Bd5 {[%emt 0:12:35]} Bd7 {[%emt 0:03:28]} 24. f5 {[%emt 0:05:33]} c5 {[%emt 0:12:53]} 25. Be4 {[%emt 0:02:43]} Rb4 {[%emt 0:12:05]} 26. Rxd6 {[%emt 0:13:34]} Rxe4 {[%emt 0:02:34]} 27. Rxf6 {[%emt 0:00:10]} Rc8 {[%emt 0:07:39]} 28. Rxc5+ {[%emt 0:01:35]} Kb7 {[%emt 0:00:18]} 29. Rxc8 {[%emt 0:00:10]} Kxc8 {[%emt 0:00:20]} 30. Rf8+ {[%emt 0:00:41]} Kc7 {[%emt 0:01:22]} 31. f6 {[%emt 0:00:48]} 1-0